[Event "Titled Tuesday Blitz April 25 Late 2023"]
[White "Tymrakiewicz, Rafal"]
[Black "Liu, Eric"]
[WhiteFideId "1108832"]
[BlackFideId "30960240"]
[WhiteElo "2151"]
[BlackElo "2094"]
[Result "1-0"]
[Round "07"]
[TimeControl "180+2"]
[Date "2023.04.25"]
[WhiteClock "0:00:08"]
[BlackClock "0:00:45"]

1. e4 {[%clk 0:03:00]}  b6 {[%clk 0:03:00]} 2. d4 {[%clk 0:03:00]}  Bb7 {[%clk 0:03:00]} 3. Nd2 {[%clk 0:02:59]}  e6 {[%clk 0:03:00]} 4. Bd3 {[%clk 0:02:58]}  h5 {[%clk 0:03:01]} 5. f4 {[%clk 0:02:50]}  h4 {[%clk 0:03:01]} 6. Ngf3 {[%clk 0:02:50]}  h3 {[%clk 0:03:01]} 7. g3 {[%clk 0:02:40]}  d6 {[%clk 0:02:58]} 8. Qe2 {[%clk 0:02:40]}  c5 {[%clk 0:02:57]} 9. d5 {[%clk 0:02:27]}  Nd7 {[%clk 0:02:53]} 10. c4 {[%clk 0:02:25]}  e5 {[%clk 0:02:53]} 11. f5 {[%clk 0:02:14]}  Be7 {[%clk 0:02:50]} 12. Nf1 {[%clk 0:02:11]}  Ngf6 {[%clk 0:02:50]} 13. Rg1 {[%clk 0:02:08]}  Nh7 {[%clk 0:02:51]} 14. g4 {[%clk 0:02:00]}  Ng5 {[%clk 0:02:50]} 15. N1d2 {[%clk 0:01:56]}  Nf8 {[%clk 0:02:45]} 16. b3 {[%clk 0:01:55]}  a6 {[%clk 0:02:45]} 17. Bb2 {[%clk 0:01:54]}  Bc8 {[%clk 0:02:43]} 18. Qe3 {[%clk 0:01:38]}  Nfh7 {[%clk 0:02:42]} 19. Rg3 {[%clk 0:01:18]}  Bd7 {[%clk 0:02:41]} 20. Ke2 {[%clk 0:01:10]}  b5 {[%clk 0:02:34]} 21. Rd1 {[%clk 0:01:05]}  Bf6 {[%clk 0:02:25]} 22. Nf1 {[%clk 0:00:59]}  Ke7 {[%clk 0:02:23]} 23. Bc1 {[%clk 0:00:55]}  Ke8 {[%clk 0:02:20]} 24. Qf2 {[%clk 0:00:54]}  b4 {[%clk 0:02:19]} 25. N1d2 {[%clk 0:00:52]}  a5 {[%clk 0:02:19]} 26. Bc2 {[%clk 0:00:48]}  a4 {[%clk 0:02:17]} 27. Nxg5 {[%clk 0:00:48]}  Nxg5 {[%clk 0:02:15]} 28. Nf3 {[%clk 0:00:47]}  axb3 {[%clk 0:01:57]} 29. axb3 {[%clk 0:00:43]}  Ra2 {[%clk 0:01:57]} 30. Kd3 {[%clk 0:00:43]}  Nxf3 {[%clk 0:01:34]} 31. Qxf3 {[%clk 0:00:42]}  Bg5 {[%clk 0:01:35]} 32. Bxg5 {[%clk 0:00:41]}  Qxg5 {[%clk 0:01:35]} 33. Qe3 {[%clk 0:00:42]}  f6 {[%clk 0:01:31]} 34. Qxg5 {[%clk 0:00:38]}  fxg5 {[%clk 0:01:32]} 35. Rgg1 {[%clk 0:00:37]}  Ke7 {[%clk 0:01:31]} 36. Ra1 {[%clk 0:00:36]}  Rha8 {[%clk 0:01:32]} 37. Rxa2 {[%clk 0:00:36]}  Rxa2 {[%clk 0:01:33]} 38. Rg3 {[%clk 0:00:34]}  Ba4 {[%clk 0:01:30]} 39. Kd2 {[%clk 0:00:32]}  Be8 {[%clk 0:01:22]} 40. Rxh3 {[%clk 0:00:32]}  Ra1 {[%clk 0:01:22]} 41. Rh7 {[%clk 0:00:30]}  Kf6 {[%clk 0:01:22]} 42. h4 {[%clk 0:00:29]}  gxh4 {[%clk 0:01:20]} 43. Rxh4 {[%clk 0:00:29]}  Rg1 {[%clk 0:01:18]} 44. Bd1 {[%clk 0:00:26]}  Rg2+ {[%clk 0:01:11]} 45. Be2 {[%clk 0:00:26]}  Rg3 {[%clk 0:01:11]} 46. Bd1 {[%clk 0:00:24]}  Rg2+ {[%clk 0:01:11]} 47. Be2 {[%clk 0:00:22]}  Bf7 {[%clk 0:01:10]} 48. Rh8 {[%clk 0:00:20]}  Rg3 {[%clk 0:01:10]} 49. Bd1 {[%clk 0:00:17]}  g6 {[%clk 0:01:10]} 50. Rd8 {[%clk 0:00:15]}  Ke7 {[%clk 0:01:11]} 51. Rb8 {[%clk 0:00:15]}  gxf5 {[%clk 0:01:11]} 52. exf5 {[%clk 0:00:15]}  e4 {[%clk 0:01:06]} 53. Rb7+ {[%clk 0:00:14]}  Kf6 {[%clk 0:01:07]} 54. Rb6 {[%clk 0:00:08]}  Ke5 {[%clk 0:01:06]} 55. Rb7 {[%clk 0:00:09]}  Bg8 {[%clk 0:00:59]} 56. Rg7 {[%clk 0:00:08]}  Bxd5 {[%clk 0:01:00]} 57. cxd5 {[%clk 0:00:08]}  Kxd5 {[%clk 0:01:01]} 58. f6 {[%clk 0:00:08]}  e3+ {[%clk 0:00:55]} 59. Kd3 {[%clk 0:00:08]}  Ke6 {[%clk 0:00:51]} 60. g5 {[%clk 0:00:08]}  d5 {[%clk 0:00:50]} 61. Re7+ {[%clk 0:00:08]}  Kd6 {[%clk 0:00:48]} 62. Rxe3 {[%clk 0:00:08]}  c4+ {[%clk 0:00:48]} 63. bxc4 {[%clk 0:00:08]}  dxc4+ {[%clk 0:00:49]} 64. Kd4 {[%clk 0:00:08]}  Rg4+ {[%clk 0:00:45]} 65. Bxg4 {[%clk 0:00:08]} 1-0


[Site "https://www.chess.com"]

[Event "Titled Tuesday Blitz April 25 Late 2023"]
[White "Musovic, Armin"]
[Black "Skibbe, Willi"]
[WhiteFideId "939935"]
[BlackFideId "4682190"]
[WhiteElo "2322"]
[BlackElo "2176"]
[Result "1-0"]
[Round "07"]
[TimeControl "180+2"]
[Date "2023.04.25"]
[WhiteClock "0:00:07"]
[BlackClock "0:00:02"]

1. e4 {[%clk 0:02:58]}  e6 {[%clk 0:02:50]} 2. d4 {[%clk 0:02:52]}  d5 {[%clk 0:02:49]} 3. Nd2 {[%clk 0:02:53]}  c5 {[%clk 0:02:47]} 4. Ngf3 {[%clk 0:02:52]}  cxd4 {[%clk 0:02:45]} 5. Nxd4 {[%clk 0:02:52]}  Nc6 {[%clk 0:02:45]} 6. Nxc6 {[%clk 0:02:50]}  bxc6 {[%clk 0:02:45]} 7. Bd3 {[%clk 0:02:50]}  Nf6 {[%clk 0:02:44]} 8. Qe2 {[%clk 0:02:50]}  Be7 {[%clk 0:02:44]} 9. O-O {[%clk 0:02:50]}  Nd7 {[%clk 0:02:32]} 10. c3 {[%clk 0:02:46]}  O-O {[%clk 0:02:29]} 11. Re1 {[%clk 0:02:45]}  a5 {[%clk 0:02:26]} 12. exd5 {[%clk 0:02:40]}  cxd5 {[%clk 0:02:25]} 13. Nf3 {[%clk 0:02:02]}  Qb6 {[%clk 0:02:18]} 14. Be3 {[%clk 0:01:53]}  Bc5 {[%clk 0:02:18]} 15. Ng5 {[%clk 0:01:31]}  g6 {[%clk 0:01:59]} 16. Nxh7 {[%clk 0:01:07]}  Kxh7 {[%clk 0:01:54]} 17. Qh5+ {[%clk 0:01:04]}  Kg8 {[%clk 0:01:47]} 18. Bxg6 {[%clk 0:01:00]}  Nf6 {[%clk 0:01:44]} 19. Qg5 {[%clk 0:00:45]}  Bxe3 {[%clk 0:01:38]} 20. Rxe3 {[%clk 0:00:39]}  Qxe3 {[%clk 0:01:06]} 21. fxe3 {[%clk 0:00:25]}  fxg6 {[%clk 0:01:05]} 22. Qxg6+ {[%clk 0:00:26]}  Kh8 {[%clk 0:01:05]} 23. Rf1 {[%clk 0:00:27]}  Nh7 {[%clk 0:01:00]} 24. Rf7 {[%clk 0:00:19]}  Rxf7 {[%clk 0:00:56]} 25. Qxf7 {[%clk 0:00:20]}  a4 {[%clk 0:00:42]} 26. h4 {[%clk 0:00:20]}  a3 {[%clk 0:00:40]} 27. bxa3 {[%clk 0:00:19]}  Ba6 {[%clk 0:00:26]} 28. Qxe6 {[%clk 0:00:19]}  Bc4 {[%clk 0:00:23]} 29. e4 {[%clk 0:00:19]}  Rg8 {[%clk 0:00:11]} 30. Qe5+ {[%clk 0:00:19]}  Rg7 {[%clk 0:00:11]} 31. exd5 {[%clk 0:00:19]}  Nf8 {[%clk 0:00:09]} 32. d6 {[%clk 0:00:18]}  Kg8 {[%clk 0:00:08]} 33. h5 {[%clk 0:00:11]}  Be6 {[%clk 0:00:06]} 34. h6 {[%clk 0:00:11]}  Rg6 {[%clk 0:00:06]} 35. c4 {[%clk 0:00:08]}  Rxh6 {[%clk 0:00:05]} 36. c5 {[%clk 0:00:07]}  Bd7 {[%clk 0:00:04]} 37. Qd5+ {[%clk 0:00:06]}  Be6 {[%clk 0:00:02]} 38. Qd2 {[%clk 0:00:07]}  Bd7 {[%clk 0:00:01]} 39. Qxh6 {[%clk 0:00:06]}  Bc6 {[%clk 0:00:01]} 40. Qg5+ {[%clk 0:00:06]}  Kf7 {[%clk 0:00:02]} 41. Qe7+ {[%clk 0:00:07]}  Kg6 {[%clk 0:00:02]} 42. Qxf8 {[%clk 0:00:07]} 1-0


[Site "https://www.chess.com"]

[Event "Titled Tuesday Blitz April 25 Late 2023"]
[White "Florianovitz, Derlei Alex"]
[Black "Petrovic, Aleksa"]
[WhiteFideId "2114178"]
[BlackFideId "967629"]
[WhiteElo "1953"]
[BlackElo "2309"]
[Result "0-1"]
[Round "07"]
[TimeControl "180+2"]
[Date "2023.04.25"]
[WhiteClock "0:00:02"]
[BlackClock "0:00:06"]

1. e4 {[%clk 0:03:00]}  c6 {[%clk 0:02:59]} 2. d4 {[%clk 0:03:00]}  d5 {[%clk 0:03:00]} 3. exd5 {[%clk 0:03:01]}  cxd5 {[%clk 0:03:00]} 4. c4 {[%clk 0:03:01]}  Nf6 {[%clk 0:03:00]} 5. Nc3 {[%clk 0:03:02]}  e6 {[%clk 0:03:00]} 6. c5 {[%clk 0:03:02]}  Be7 {[%clk 0:02:59]} 7. Nf3 {[%clk 0:03:02]}  O-O {[%clk 0:02:59]} 8. Bf4 {[%clk 0:03:00]}  b6 {[%clk 0:02:56]} 9. b4 {[%clk 0:02:59]}  bxc5 {[%clk 0:02:42]} 10. bxc5 {[%clk 0:03:00]}  Ne4 {[%clk 0:02:41]} 11. Nxe4 {[%clk 0:02:34]}  dxe4 {[%clk 0:02:41]} 12. Ne5 {[%clk 0:02:34]}  f6 {[%clk 0:02:26]} 13. Nc4 {[%clk 0:02:32]}  Nc6 {[%clk 0:02:19]} 14. Bd6 {[%clk 0:02:21]}  Ba6 {[%clk 0:02:05]} 15. Qa4 {[%clk 0:02:09]}  Nxd4 {[%clk 0:01:53]} 16. Rc1 {[%clk 0:01:55]}  Bxd6 {[%clk 0:01:50]} 17. Nxd6 {[%clk 0:01:50]}  Bxf1 {[%clk 0:01:38]} 18. Kxf1 {[%clk 0:01:36]}  Nf5 {[%clk 0:01:31]} 19. Qxe4 {[%clk 0:01:30]}  Nxd6 {[%clk 0:01:23]} 20. cxd6 {[%clk 0:01:27]}  Qxd6 {[%clk 0:01:23]} 21. g3 {[%clk 0:01:20]}  Rac8 {[%clk 0:01:22]} 22. Kg2 {[%clk 0:01:19]}  Qd5 {[%clk 0:01:12]} 23. Qxd5 {[%clk 0:01:07]}  exd5 {[%clk 0:01:13]} 24. Rhd1 {[%clk 0:01:07]}  Rxc1 {[%clk 0:01:12]} 25. Rxc1 {[%clk 0:01:08]}  Rd8 {[%clk 0:01:06]} 26. Kf3 {[%clk 0:01:07]}  Rd7 {[%clk 0:01:06]} 27. Ke3 {[%clk 0:01:06]}  Kf7 {[%clk 0:01:05]} 28. Kd4 {[%clk 0:01:06]}  Ke6 {[%clk 0:01:04]} 29. Rc6+ {[%clk 0:01:02]}  Kf5 {[%clk 0:01:04]} 30. f3 {[%clk 0:01:00]}  h5 {[%clk 0:01:03]} 31. h4 {[%clk 0:00:54]}  g5 {[%clk 0:01:02]} 32. hxg5 {[%clk 0:00:54]}  Kxg5 {[%clk 0:00:55]} 33. a4 {[%clk 0:00:50]}  f5 {[%clk 0:00:53]} 34. a5 {[%clk 0:00:48]}  f4 {[%clk 0:00:52]} 35. gxf4+ {[%clk 0:00:46]}  Kxf4 {[%clk 0:00:53]} 36. Rh6 {[%clk 0:00:43]}  Kg5 {[%clk 0:00:48]} 37. Rh8 {[%clk 0:00:43]}  Rb7 {[%clk 0:00:39]} 38. Rg8+ {[%clk 0:00:37]}  Kf4 {[%clk 0:00:36]} 39. Rh8 {[%clk 0:00:36]}  Kg5 {[%clk 0:00:36]} 40. Rg8+ {[%clk 0:00:36]}  Kh4 {[%clk 0:00:36]} 41. Kxd5 {[%clk 0:00:35]}  Rb5+ {[%clk 0:00:36]} 42. Ke6 {[%clk 0:00:31]}  Rxa5 {[%clk 0:00:37]} 43. f4 {[%clk 0:00:31]}  Ra6+ {[%clk 0:00:23]} 44. Ke7 {[%clk 0:00:29]}  Ra5 {[%clk 0:00:20]} 45. Ke6 {[%clk 0:00:28]}  Ra6+ {[%clk 0:00:20]} 46. Ke7 {[%clk 0:00:28]}  Ra4 {[%clk 0:00:06]} 47. f5 {[%clk 0:00:28]}  Rg4 {[%clk 0:00:06]} 48. Rh8 {[%clk 0:00:19]}  Kg5 {[%clk 0:00:04]} 49. f6 {[%clk 0:00:17]}  Re4+ {[%clk 0:00:04]} 50. Kf7 {[%clk 0:00:15]}  Rf4 {[%clk 0:00:04]} 51. Rg8+ {[%clk 0:00:15]}  Kh6 {[%clk 0:00:04]} 52. Rg6+ {[%clk 0:00:12]}  Kh7 {[%clk 0:00:04]} 53. Rg5 {[%clk 0:00:12]}  Kh6 {[%clk 0:00:02]} 54. Rg6+ {[%clk 0:00:08]}  Kh7 {[%clk 0:00:02]} 55. Rg5 {[%clk 0:00:08]}  Rh4 {[%clk 0:00:01]} 56. Ke6 {[%clk 0:00:07]}  Kh6 {[%clk 0:00:01]} 57. Re5 {[%clk 0:00:06]}  Rf4 {[%clk 0:00:01]} 58. Rf5 {[%clk 0:00:05]}  Re4+ {[%clk 0:00:01]} 59. Kd7 {[%clk 0:00:03]}  Rd4+ {[%clk 0:00:01]} 60. Kc6 {[%clk 0:00:03]}  Rd8 {[%clk 0:00:01]} 61. f7 {[%clk 0:00:03]}  Rf8 {[%clk 0:00:02]} 62. Kd7 {[%clk 0:00:04]}  Kg6 {[%clk 0:00:01]} 63. Ra5 {[%clk 0:00:02]}  Rxf7+ {[%clk 0:00:02]} 64. Ke6 {[%clk 0:00:03]}  Rf6+ {[%clk 0:00:02]} 65. Ke7 {[%clk 0:00:04]}  Rf5 {[%clk 0:00:02]} 66. Rxa7 {[%clk 0:00:03]}  Kg5 {[%clk 0:00:02]} 67. Ra8 {[%clk 0:00:04]}  Kg4 {[%clk 0:00:02]} 68. Rg8+ {[%clk 0:00:04]}  Kh3 {[%clk 0:00:02]} 69. Ke6 {[%clk 0:00:04]}  Rf1 {[%clk 0:00:02]} 70. Ke5 {[%clk 0:00:04]}  h4 {[%clk 0:00:02]} 71. Ke4 {[%clk 0:00:04]}  Kh2 {[%clk 0:00:03]} 72. Ke3 {[%clk 0:00:05]}  h3 {[%clk 0:00:02]} 73. Ke2 {[%clk 0:00:05]}  Rg1 {[%clk 0:00:02]} 74. Rh8 {[%clk 0:00:03]}  Rg2+ {[%clk 0:00:02]} 75. Kf1 {[%clk 0:00:03]}  Ra2 {[%clk 0:00:01]} 76. Rg8 {[%clk 0:00:02]}  Ra1+ {[%clk 0:00:01]} 77. Kf2 {[%clk 0:00:03]}  Ra3 {[%clk 0:00:02]} 78. Kf1 {[%clk 0:00:02]}  Kh1 {[%clk 0:00:02]} 79. Kf2 {[%clk 0:00:02]}  h2 {[%clk 0:00:02]} 80. Kf1 {[%clk 0:00:02]}  Ra2 {[%clk 0:00:03]} 81. Rg7 {[%clk 0:00:01]}  Rb2 {[%clk 0:00:03]} 82. Rg6 {[%clk 0:00:01]}  Rb1+ {[%clk 0:00:04]} 83. Kf2 {[%clk 0:00:01]}  Rg1 {[%clk 0:00:05]} 84. Rh6 {[%clk 0:00:01]}  Rg2+ {[%clk 0:00:05]} 85. Kf3 {[%clk 0:00:01]}  Kg1 {[%clk 0:00:04]} 86. Rc6 {[%clk 0:00:01]}  h1=Q {[%clk 0:00:04]} 87. Rc1+ {[%clk 0:00:02]}  Kh2 {[%clk 0:00:05]} 88. Rxh1+ {[%clk 0:00:02]}  Kxh1 {[%clk 0:00:06]} 0-1


[Site "https://www.chess.com"]

[Event "Titled Tuesday Blitz April 25 Late 2023"]
[White "Sailer, Mike"]
[Black "Moral Garcia, Serafin"]
[WhiteFideId "2012901"]
[BlackFideId "2201925"]
[WhiteElo "2109"]
[BlackElo "2274"]
[Result "0-1"]
[Round "07"]
[TimeControl "180+2"]
[Date "2023.04.25"]
[WhiteClock "0:00:19"]
[BlackClock "0:01:28"]

1. d4 {[%clk 0:02:45]}  Nf6 {[%clk 0:02:55]} 2. Bg5 {[%clk 0:02:45]}  d5 {[%clk 0:02:55]} 3. Bxf6 {[%clk 0:02:44]}  exf6 {[%clk 0:02:56]} 4. e3 {[%clk 0:02:42]}  Bd6 {[%clk 0:02:55]} 5. c4 {[%clk 0:02:41]}  dxc4 {[%clk 0:02:56]} 6. Bxc4 {[%clk 0:02:39]}  Nd7 {[%clk 0:02:54]} 7. Nf3 {[%clk 0:02:32]}  f5 {[%clk 0:02:54]} 8. Nc3 {[%clk 0:02:23]}  c6 {[%clk 0:02:54]} 9. O-O {[%clk 0:02:16]}  Nf6 {[%clk 0:02:54]} 10. Qb3 {[%clk 0:02:13]}  O-O {[%clk 0:02:53]} 11. Rfd1 {[%clk 0:02:05]}  Qe7 {[%clk 0:02:53]} 12. a4 {[%clk 0:01:59]}  Ne4 {[%clk 0:02:49]} 13. a5 {[%clk 0:01:34]}  Rb8 {[%clk 0:02:45]} 14. d5 {[%clk 0:01:25]}  Bd7 {[%clk 0:02:40]} 15. Nxe4 {[%clk 0:01:15]}  fxe4 {[%clk 0:02:40]} 16. Nd2 {[%clk 0:01:15]}  Bg4 {[%clk 0:02:29]} 17. Rdc1 {[%clk 0:01:01]}  c5 {[%clk 0:02:26]} 18. Nf1 {[%clk 0:00:55]}  f5 {[%clk 0:02:21]} 19. a6 {[%clk 0:00:53]}  b6 {[%clk 0:02:20]} 20. Qc2 {[%clk 0:00:51]}  Rf6 {[%clk 0:02:18]} 21. Be2 {[%clk 0:00:51]}  Rg6 {[%clk 0:02:16]} 22. Bxg4 {[%clk 0:00:51]}  Rxg4 {[%clk 0:02:16]} 23. Qe2 {[%clk 0:00:35]}  Rf8 {[%clk 0:02:06]} 24. b4 {[%clk 0:00:33]}  Rf6 {[%clk 0:01:37]} 25. bxc5 {[%clk 0:00:31]}  Bxc5 {[%clk 0:01:37]} 26. Rab1 {[%clk 0:00:24]}  Qe5 {[%clk 0:01:31]} 27. Rxc5 {[%clk 0:00:19]}  bxc5 {[%clk 0:01:29]} 28. Rb8+ {[%clk 0:00:19]}  Qxb8 {[%clk 0:01:28]} 0-1


[Site "https://www.chess.com"]

[Event "Titled Tuesday Blitz April 25 Late 2023"]
[White "Leenhouts, Koen"]
[Black "Novikova, Galina"]
[WhiteFideId "1008439"]
[BlackFideId "4157095"]
[WhiteElo "2409"]
[BlackElo "1953"]
[Result "1-0"]
[Round "07"]
[TimeControl "180+2"]
[Date "2023.04.25"]
[WhiteClock "0:00:34"]
[BlackClock "0:00:02"]

1. e4 {[%clk 0:03:00]}  e6 {[%clk 0:03:00]} 2. d3 {[%clk 0:03:00]}  d5 {[%clk 0:03:00]} 3. Nd2 {[%clk 0:03:00]}  Nf6 {[%clk 0:03:00]} 4. Ngf3 {[%clk 0:02:59]}  g6 {[%clk 0:03:01]} 5. e5 {[%clk 0:02:47]}  Nfd7 {[%clk 0:03:00]} 6. d4 {[%clk 0:02:48]}  Bg7 {[%clk 0:02:52]} 7. h4 {[%clk 0:02:46]}  c5 {[%clk 0:02:51]} 8. c3 {[%clk 0:02:46]}  Nc6 {[%clk 0:02:51]} 9. h5 {[%clk 0:02:42]}  f6 {[%clk 0:02:16]} 10. h6 {[%clk 0:02:36]}  Bf8 {[%clk 0:02:16]} 11. exf6 {[%clk 0:02:36]}  Qxf6 {[%clk 0:02:11]} 12. Bd3 {[%clk 0:02:35]}  cxd4 {[%clk 0:02:02]} 13. cxd4 {[%clk 0:02:36]}  Nxd4 {[%clk 0:02:00]} 14. Nxd4 {[%clk 0:02:35]}  Qxd4 {[%clk 0:02:01]} 15. Nf3 {[%clk 0:02:35]}  Bb4+ {[%clk 0:01:53]} 16. Kf1 {[%clk 0:02:35]}  Qf6 {[%clk 0:01:38]} 17. Bg5 {[%clk 0:02:33]}  Qf7 {[%clk 0:01:24]} 18. Qa4 {[%clk 0:02:26]}  Bd6 {[%clk 0:01:06]} 19. Re1 {[%clk 0:02:20]}  O-O {[%clk 0:01:05]} 20. Rh4 {[%clk 0:02:13]}  e5 {[%clk 0:01:03]} 21. Bc2 {[%clk 0:01:51]}  Nc5 {[%clk 0:00:52]} 22. Qb5 {[%clk 0:01:37]}  e4 {[%clk 0:00:51]} 23. Re3 {[%clk 0:01:13]}  exf3 {[%clk 0:00:47]} 24. Rxf3 {[%clk 0:01:14]}  Qe6 {[%clk 0:00:35]} 25. Rxf8+ {[%clk 0:01:07]}  Bxf8 {[%clk 0:00:36]} 26. b4 {[%clk 0:01:04]}  a6 {[%clk 0:00:29]} 27. Qa5 {[%clk 0:00:59]}  b6 {[%clk 0:00:23]} 28. Qa3 {[%clk 0:00:57]}  Ne4 {[%clk 0:00:18]} 29. Rxe4 {[%clk 0:00:57]}  Qf5 {[%clk 0:00:03]} 30. Rf4 {[%clk 0:00:43]}  Qxg5 {[%clk 0:00:03]} 31. Qf3 {[%clk 0:00:43]}  Bf5 {[%clk 0:00:02]} 32. Bxf5 {[%clk 0:00:40]}  gxf5 {[%clk 0:00:03]} 33. Qxd5+ {[%clk 0:00:37]}  Kh8 {[%clk 0:00:03]} 34. Qxa8 {[%clk 0:00:35]}  Qxf4 {[%clk 0:00:02]} 35. Qxf8# {[%clk 0:00:34]} 1-0


[Site "https://www.chess.com"]

[Event "Titled Tuesday Blitz April 25 Late 2023"]
[White "Martic, Ivan"]
[Black "Schuster, Karsten"]
[WhiteFideId "929301"]
[BlackFideId "4611071"]
[WhiteElo "2360"]
[BlackElo "2294"]
[Result "1-0"]
[Round "07"]
[TimeControl "180+2"]
[Date "2023.04.25"]
[WhiteClock "0:01:02"]
[BlackClock "0:01:03"]

1. d4 {[%clk 0:02:55]}  d5 {[%clk 0:02:55]} 2. c4 {[%clk 0:02:54]}  e6 {[%clk 0:02:55]} 3. Nc3 {[%clk 0:02:54]}  Nf6 {[%clk 0:02:56]} 4. Bg5 {[%clk 0:02:53]}  Be7 {[%clk 0:02:55]} 5. e3 {[%clk 0:02:54]}  O-O {[%clk 0:02:55]} 6. Nf3 {[%clk 0:02:54]}  c6 {[%clk 0:02:53]} 7. Rc1 {[%clk 0:02:52]}  Nbd7 {[%clk 0:02:53]} 8. Bd3 {[%clk 0:02:51]}  h6 {[%clk 0:02:52]} 9. Bh4 {[%clk 0:02:49]}  b6 {[%clk 0:02:51]} 10. O-O {[%clk 0:02:36]}  Bb7 {[%clk 0:02:51]} 11. cxd5 {[%clk 0:02:33]}  Nxd5 {[%clk 0:02:50]} 12. Bxe7 {[%clk 0:02:32]}  Qxe7 {[%clk 0:02:49]} 13. e4 {[%clk 0:02:32]}  Nxc3 {[%clk 0:02:48]} 14. bxc3 {[%clk 0:02:26]}  c5 {[%clk 0:02:48]} 15. Qe2 {[%clk 0:02:26]}  Rac8 {[%clk 0:02:45]} 16. e5 {[%clk 0:02:23]}  Rc7 {[%clk 0:02:34]} 17. Bb1 {[%clk 0:02:19]}  Rfc8 {[%clk 0:02:33]} 18. Rcd1 {[%clk 0:02:20]}  cxd4 {[%clk 0:02:31]} 19. cxd4 {[%clk 0:02:20]}  Rc3 {[%clk 0:02:23]} 20. Be4 {[%clk 0:02:16]}  Bxe4 {[%clk 0:02:22]} 21. Qxe4 {[%clk 0:02:17]}  Nf8 {[%clk 0:02:16]} 22. d5 {[%clk 0:02:12]}  exd5 {[%clk 0:02:17]} 23. Rxd5 {[%clk 0:02:12]}  Rc1 {[%clk 0:02:15]} 24. g3 {[%clk 0:02:08]}  Rxf1+ {[%clk 0:02:14]} 25. Kxf1 {[%clk 0:02:09]}  Qa3 {[%clk 0:02:12]} 26. Nd4 {[%clk 0:01:55]}  Qxa2 {[%clk 0:01:51]} 27. Nf5 {[%clk 0:01:53]}  Qa3 {[%clk 0:01:47]} 28. Rd6 {[%clk 0:01:47]}  Qc1+ {[%clk 0:01:40]} 29. Kg2 {[%clk 0:01:46]}  Qc2 {[%clk 0:01:40]} 30. Qg4 {[%clk 0:01:37]}  Ng6 {[%clk 0:01:35]} 31. Rxg6 {[%clk 0:01:34]}  fxg6 {[%clk 0:01:24]} 32. Ne7+ {[%clk 0:01:32]}  Kf7 {[%clk 0:01:22]} 33. Nxc8 {[%clk 0:01:27]}  Qc6+ {[%clk 0:01:19]} 34. Kg1 {[%clk 0:01:22]}  a5 {[%clk 0:01:19]} 35. Nd6+ {[%clk 0:01:20]}  Kg8 {[%clk 0:01:11]} 36. Qc4+ {[%clk 0:01:05]}  Qxc4 {[%clk 0:01:08]} 37. Nxc4 {[%clk 0:01:06]}  Kf7 {[%clk 0:01:07]} 38. Nxb6 {[%clk 0:01:05]}  g5 {[%clk 0:01:07]} 39. f4 {[%clk 0:01:04]}  gxf4 {[%clk 0:01:04]} 40. gxf4 {[%clk 0:01:04]}  Ke6 {[%clk 0:01:04]} 41. Kf2 {[%clk 0:01:03]}  g5 {[%clk 0:01:03]} 42. Kf3 {[%clk 0:01:01]}  gxf4 {[%clk 0:01:03]} 43. Kxf4 {[%clk 0:01:02]}  h5 {[%clk 0:01:03]} 44. h4 {[%clk 0:01:02]} 1-0


[Site "https://www.chess.com"]

[Event "Titled Tuesday Blitz April 25 Late 2023"]
[White "Bogaudinov, Rushan"]
[Black "Seletsky, Grigory"]
[WhiteFideId "4129288"]
[BlackFideId "14112191"]
[WhiteElo "1967"]
[BlackElo "2490"]
[Result "1-0"]
[Round "07"]
[TimeControl "180+2"]
[Date "2023.04.25"]
[WhiteClock "0:00:17"]
[BlackClock "0:00:07"]

1. d4 {[%clk 0:02:19]}  Nf6 {[%clk 0:02:57]} 2. c4 {[%clk 0:02:18]}  d6 {[%clk 0:02:57]} 3. Nc3 {[%clk 0:02:18]}  e5 {[%clk 0:02:57]} 4. e3 {[%clk 0:02:16]}  Nc6 {[%clk 0:02:54]} 5. Nf3 {[%clk 0:02:15]}  Bd7 {[%clk 0:02:53]} 6. Be2 {[%clk 0:02:15]}  g6 {[%clk 0:02:53]} 7. Rb1 {[%clk 0:02:12]}  a5 {[%clk 0:02:51]} 8. O-O {[%clk 0:02:10]}  Bg7 {[%clk 0:02:50]} 9. a3 {[%clk 0:02:06]}  Bf5 {[%clk 0:02:44]} 10. Ra1 {[%clk 0:02:05]}  O-O {[%clk 0:02:40]} 11. b3 {[%clk 0:02:03]}  exd4 {[%clk 0:02:30]} 12. exd4 {[%clk 0:02:01]}  Re8 {[%clk 0:02:29]} 13. Bb2 {[%clk 0:01:57]}  Ne4 {[%clk 0:02:28]} 14. Nd5 {[%clk 0:01:43]}  Ne7 {[%clk 0:02:09]} 15. Ne3 {[%clk 0:01:40]}  Bd7 {[%clk 0:02:06]} 16. Ra2 {[%clk 0:01:38]}  Nf5 {[%clk 0:01:52]} 17. Nxf5 {[%clk 0:01:31]}  Bxf5 {[%clk 0:01:48]} 18. Re1 {[%clk 0:01:23]}  c6 {[%clk 0:01:40]} 19. Bd3 {[%clk 0:01:20]}  d5 {[%clk 0:01:40]} 20. c5 {[%clk 0:01:17]}  Qf6 {[%clk 0:01:25]} 21. Ne5 {[%clk 0:01:13]}  h5 {[%clk 0:01:22]} 22. f3 {[%clk 0:01:10]}  Ng5 {[%clk 0:01:19]} 23. Qc2 {[%clk 0:01:04]}  Bxd3 {[%clk 0:01:14]} 24. Qxd3 {[%clk 0:01:05]}  Ne6 {[%clk 0:01:13]} 25. Raa1 {[%clk 0:01:01]}  Qg5 {[%clk 0:01:07]} 26. Bc1 {[%clk 0:00:53]}  Qf6 {[%clk 0:00:40]} 27. Bb2 {[%clk 0:00:42]}  Nf4 {[%clk 0:00:36]} 28. Qf1 {[%clk 0:00:36]}  Qf5 {[%clk 0:00:32]} 29. Rad1 {[%clk 0:00:33]}  Ne6 {[%clk 0:00:31]} 30. Qd3 {[%clk 0:00:21]}  Qxd3 {[%clk 0:00:23]} 31. Rxd3 {[%clk 0:00:20]}  Nf4 {[%clk 0:00:20]} 32. Rd2 {[%clk 0:00:18]}  Re7 {[%clk 0:00:21]} 33. Kf2 {[%clk 0:00:18]}  Rae8 {[%clk 0:00:21]} 34. g3 {[%clk 0:00:18]}  Nh3+ {[%clk 0:00:19]} 35. Kf1 {[%clk 0:00:15]}  f6 {[%clk 0:00:18]} 36. Nd3 {[%clk 0:00:15]}  Rxe1+ {[%clk 0:00:17]} 37. Nxe1 {[%clk 0:00:16]}  Ng5 {[%clk 0:00:17]} 38. Re2 {[%clk 0:00:16]}  Rxe2 {[%clk 0:00:15]} 39. Kxe2 {[%clk 0:00:17]}  Kf7 {[%clk 0:00:16]} 40. h4 {[%clk 0:00:16]}  Ne6 {[%clk 0:00:16]} 41. Kd3 {[%clk 0:00:17]}  f5 {[%clk 0:00:17]} 42. Bc3 {[%clk 0:00:17]}  Nxc5+ {[%clk 0:00:17]} 43. dxc5 {[%clk 0:00:16]}  Bf8 {[%clk 0:00:17]} 44. b4 {[%clk 0:00:16]}  axb4 {[%clk 0:00:16]} 45. axb4 {[%clk 0:00:17]}  Be7 {[%clk 0:00:15]} 46. Nc2 {[%clk 0:00:17]}  g5 {[%clk 0:00:15]} 47. hxg5 {[%clk 0:00:17]}  Bxg5 {[%clk 0:00:16]} 48. f4 {[%clk 0:00:17]}  Bd8 {[%clk 0:00:14]} 49. Be1 {[%clk 0:00:18]}  Bf6 {[%clk 0:00:12]} 50. Bf2 {[%clk 0:00:17]}  Kg6 {[%clk 0:00:12]} 51. Nd4 {[%clk 0:00:17]}  Bd8 {[%clk 0:00:11]} 52. b5 {[%clk 0:00:16]}  cxb5 {[%clk 0:00:10]} 53. Nxb5 {[%clk 0:00:17]}  Be7 {[%clk 0:00:09]} 54. Nc3 {[%clk 0:00:17]}  d4 {[%clk 0:00:08]} 55. Kxd4 {[%clk 0:00:17]}  h4 {[%clk 0:00:08]} 56. gxh4 {[%clk 0:00:17]}  Kh5 {[%clk 0:00:09]} 57. Ke5 {[%clk 0:00:17]}  Kg4 {[%clk 0:00:08]} 58. Nd5 {[%clk 0:00:17]}  Bxc5 {[%clk 0:00:06]} 59. Bxc5 {[%clk 0:00:17]}  Kxh4 {[%clk 0:00:07]} 60. Kxf5 {[%clk 0:00:17]} 1-0


[Site "https://www.chess.com"]